[Event "2025 Chess.com Botwinnik Rapid toernooi"]
[Site "Zoetermeer, Netherlands"]
[Date "????.??.??"]
[Round "1.1"]
[White "Bruschke, Alexander"]
[Black "Vrolijk, Liam"]
[Result "0-1"]
[TimeControl "15+5"]
[BlackTitle "GM"]
[WhiteFideId "8384156"]
[BlackFideId "8428871"]
[WhiteElo "1974"]
[BlackElo "2510"]

1. e4 {[%emt 10:26:06]} c5 {[%emt 00:00:03]} 2. Nc3 {[%emt 00:00:05]} d6 {[%emt
00:00:02]} 3. f4 {[%emt 00:00:04]} g6 {[%emt 00:00:04]} 4. Nf3 {[%emt
00:00:15]} Bg7 {[%emt 00:00:03]} 5. g3 {[%emt 00:00:18]} Nc6 {[%emt 00:00:06]}
6. Bg2 {[%emt 00:00:04]} Rb8 {[%emt 00:00:26]} 7. O-O {[%emt 00:00:25]} b5
{[%emt 00:00:06]} 8. d3 {[%emt 00:01:42]} b4 {[%emt 00:00:16]} 9. Ne2 {[%emt
00:00:13]} e6 {[%emt 00:00:26]} 10. d4 {[%emt 00:00:34]} Ba6 {[%emt 00:01:29]}
11. c3 {[%emt 00:03:17]} bxc3 {[%emt 00:00:32]} 12. bxc3 {[%emt 00:00:01]} cxd4
{[%emt 00:00:17]} 13. Nexd4 {[%emt 00:01:29]} Nxd4 {[%emt 00:00:43]} 14. cxd4
{[%emt 00:00:38]} Bxf1 {[%emt 00:00:04]} 15. Bxf1 {[%emt 00:00:06]} Ne7 {[%emt
00:00:46]} 16. Be3 {[%emt 00:00:43]} O-O {[%emt 00:00:05]} 17. Qd2 {[%emt
00:00:33]} Qd7 {[%emt 00:00:06]} 18. Rd1 {[%emt 00:00:12]} Rfc8 {[%emt
00:00:09]} 19. d5 {[%emt 00:01:11]} exd5 {[%emt 00:00:14]} 20. exd5 {[%emt
00:00:12]} Qa4 {[%emt 00:00:38]} 21. Rc1 {[%emt 00:00:31]} Rxc1 {[%emt
00:00:14]} 22. Qxc1 {[%emt 00:00:01]} Nxd5 {[%emt 00:00:05]} 23. Bf2 {[%emt
00:00:26]} Nc3 {[%emt 00:00:19]} 24. Qd2 {[%emt 00:00:29]} Ne4 {[%emt
00:00:07]} 25. Qd3 {[%emt 00:00:18]} Nxf2 {[%emt 00:00:08]} 26. Qxd6 {[%emt
00:00:14]} Rb2 {[%emt 00:00:18]} 27. Qd8+ {[%emt 00:00:15]} Bf8 {[%emt
00:00:02]} 28. Ng5 {[%emt 00:00:32]} Qc2 {[%emt 00:01:26]} 29. Qd7 {[%emt
00:00:42]} Qf5 {[%emt 00:00:03]} 30. Qxa7 {[%emt 00:00:16]} Nh3+ {[%emt
00:00:21]} 0-1

[Event "2025 Chess.com Botwinnik Rapid toernooi"]
[Site "Zoetermeer, Netherlands"]
[Date "????.??.??"]
[Round "1.2"]
[White "Lai, Hing Ting"]
[Black "Kool, Jesper"]
[Result "1-0"]
[TimeControl "15+5"]
[WhiteTitle "IM"]
[WhiteFideId "8324987"]
[BlackFideId "8711659"]
[WhiteElo "2484"]
[BlackElo "1973"]

1. d4 {[%clk 00:15:04]} {[%emt 00:00:06]} d5 {[%clk 00:15:06]} {[%emt
00:00:04]} 2. Nf3 {[%clk 00:15:06]} {[%emt 00:00:03]} e6 {[%clk 00:15:09]}
{[%emt 00:00:01]} 3. Bf4 {[%clk 00:15:09]} {[%emt 00:00:03]} c5 {[%clk
00:15:12]} {[%emt 00:00:01]} 4. e3 {[%clk 00:15:12]} {[%emt 00:00:02]} Nf6
{[%clk 00:15:04]} {[%emt 00:00:13]} 5. Nbd2 {[%clk 00:15:15]} {[%emt 00:00:03]}
Nc6 {[%clk 00:15:06]} {[%emt 00:00:03]} 6. c3 {[%clk 00:15:18]} {[%emt
00:00:02]} Bd6 {[%clk 00:15:09]} {[%emt 00:00:02]} 7. Bg3 {[%clk 00:15:21]}
{[%emt 00:00:02]} O-O {[%clk 00:15:07]} {[%emt 00:00:07]} 8. Bb5 {[%clk
00:15:23]} {[%emt 00:00:02]} Bxg3 {[%clk 00:14:35]} {[%emt 00:00:38]} 9. hxg3
{[%clk 00:15:26]} {[%emt 00:00:02]} c4 {[%clk 00:14:38]} {[%emt 00:00:01]} 10.
b3 {[%clk 00:15:10]} {[%emt 00:00:22]} cxb3 {[%clk 00:13:47]} {[%emt 00:00:57]}
11. axb3 {[%clk 00:15:13]} {[%emt 00:00:01]} Bd7 {[%clk 00:13:34]} {[%emt
00:00:18]} 12. Bd3 {[%clk 00:15:13]} {[%emt 00:00:05]} Qc7 {[%clk 00:12:53]}
{[%emt 00:00:47]} 13. e4 {[%clk 00:14:25]} {[%emt 00:00:53]} dxe4 {[%clk
00:11:40]} {[%emt 00:01:19]} 14. Nxe4 {[%clk 00:14:28]} {[%emt 00:00:02]} Nxe4
{[%clk 00:11:43]} {[%emt 00:00:01]} 15. Bxe4 {[%clk 00:14:32]} {[%emt
00:00:01]} f5 {[%clk 00:11:47]} {[%emt 00:00:01]} 16. Bxc6 {[%clk 00:13:37]}
{[%emt 00:00:59]} Bxc6 {[%clk 00:11:00]} {[%emt 00:00:52]} 17. O-O {[%clk
00:13:40]} {[%emt 00:00:02]} Bxf3 {[%clk 00:10:47]} {[%emt 00:00:18]} 18. Qxf3
{[%clk 00:13:44]} {[%emt 00:00:01]} Rfc8 {[%clk 00:10:45]} {[%emt 00:00:07]} 19.
c4 {[%clk 00:13:28]} {[%emt 00:00:21]} Rd8 {[%clk 00:09:59]} {[%emt 00:00:51]}
20. Rad1 {[%clk 00:13:30]} {[%emt 00:00:03]} g6 {[%clk 00:09:19]} {[%emt
00:00:45]} 21. Rfe1 {[%clk 00:13:32]} {[%emt 00:00:03]} Re8 {[%clk 00:09:05]}
{[%emt 00:00:19]} 22. Re5 {[%clk 00:12:56]} {[%emt 00:00:41]} Rad8 {[%clk
00:08:25]} {[%emt 00:00:46]} 23. Qe3 {[%clk 00:12:59]} {[%emt 00:00:01]} Qb6
{[%clk 00:07:34]} {[%emt 00:00:56]} 24. b4 {[%clk 00:12:10]} {[%emt 00:00:54]}
Qxb4 {[%clk 00:05:18]} {[%emt 00:02:20]} 25. Rxe6 {[%clk 00:12:09]} {[%emt
00:00:07]} Rf8 {[%clk 00:03:37]} {[%emt 00:01:46]} 26. Qe2 {[%clk 00:11:41]}
{[%emt 00:00:32]} a5 {[%clk 00:02:06]} {[%emt 00:01:37]} 27. d5 {[%clk
00:11:30]} {[%emt 00:00:16]} a4 {[%clk 00:02:05]} {[%emt 00:00:06]} 28. Re7
{[%clk 00:11:23]} {[%emt 00:00:12]} Rf6 {[%clk 00:00:54]} {[%emt 00:01:16]} 29.
Rc7 {[%clk 00:09:15]} {[%emt 00:02:13]} a3 {[%clk 00:00:24]} {[%emt 00:00:36]}
30. c5 {[%clk 00:09:18]} {[%emt 00:00:02]} Qe4 {[%clk 00:00:15]} {[%emt
00:00:13]} 31. Qa2 {[%clk 00:09:04]} {[%emt 00:00:18]} Rf7 {[%clk 00:00:06]}
{[%emt 00:00:14]} 32. d6 {[%clk 00:09:01]} {[%emt 00:00:08]} Qe8 {[%clk
00:00:10]} 33. Rxb7 {[%clk 00:08:40]} {[%emt 00:00:26]} Rdd7 {[%clk 00:00:00]}
{[%emt 00:00:10]} 1-0

[Event "2025 Chess.com Botwinnik Rapid toernooi"]
[Site "Zoetermeer, Netherlands"]
[Date "????.??.??"]
[Round "1.3"]
[White "Noordkamp, Wouter"]
[Black "Van der Werf, Mark"]
[Result "0-1"]
[TimeControl "15+5"]
[BlackTitle "IM"]
[WhiteFideId "7040572"]
[BlackFideId "7263685"]
[WhiteElo "1973"]
[BlackElo "2413"]

1. e4 {[%clk 00:15:08]} {[%emt 00:00:02]} e5 {[%clk 00:15:08]} {[%emt
00:00:02]} 2. Nf3 {[%clk 00:15:11]} {[%emt 00:00:02]} Nc6 {[%clk 00:15:11]}
{[%emt 00:00:02]} 3. Bb5 {[%clk 00:15:14]} {[%emt 00:00:02]} a6 {[%clk
00:15:15]} {[%emt 00:00:02]} 4. Ba4 {[%clk 00:15:17]} {[%emt 00:00:02]} Nf6
{[%clk 00:15:18]} {[%emt 00:00:01]} 5. Qe2 {[%clk 00:15:20]} {[%emt 00:00:02]}
b5 {[%clk 00:15:18]} {[%emt 00:00:05]} 6. Bb3 {[%clk 00:15:24]} {[%emt
00:00:01]} Bc5 {[%clk 00:15:21]} {[%emt 00:00:02]} 7. c3 {[%clk 00:15:27]}
{[%emt 00:00:02]} O-O {[%clk 00:15:08]} {[%emt 00:00:18]} 8. O-O {[%clk
00:15:28]} {[%emt 00:00:03]} d6 {[%clk 00:15:07]} {[%emt 00:00:06]} 9. Rd1
{[%clk 00:15:20]} {[%emt 00:00:14]} Bb6 {[%clk 00:14:40]} {[%emt 00:00:32]} 10.
h3 {[%clk 00:14:51]} {[%emt 00:00:35]} Re8 {[%clk 00:13:40]} {[%emt 00:01:05]}
11. d3 {[%clk 00:14:53]} {[%emt 00:00:03]} h6 {[%clk 00:13:44]} {[%emt
00:00:01]} 12. Nbd2 {[%clk 00:14:54]} {[%emt 00:00:04]} Na5 {[%clk 00:13:15]}
{[%emt 00:00:34]} 13. Bc2 {[%clk 00:14:56]} {[%emt 00:00:03]} c5 {[%clk
00:13:18]} {[%emt 00:00:02]} 14. Nf1 {[%clk 00:14:58]} {[%emt 00:00:03]} Nc6
{[%clk 00:12:53]} {[%emt 00:00:29]} 15. Ng3 {[%clk 00:14:21]} {[%emt 00:00:42]}
d5 {[%clk 00:12:48]} {[%emt 00:00:10]} 16. exd5 {[%clk 00:12:50]} {[%emt
00:01:37]} Nxd5 {[%clk 00:12:44]} {[%emt 00:00:08]} 17. a4 {[%clk 00:11:21]}
{[%emt 00:01:34]} b4 {[%clk 00:12:30]} {[%emt 00:00:18]} 18. Bd2 {[%clk
00:11:02]} {[%emt 00:00:25]} Bb7 {[%clk 00:11:50]} {[%emt 00:00:45]} 19. Nh2
{[%clk 00:10:27]} {[%emt 00:00:41]} Nf4 {[%clk 00:11:21]} {[%emt 00:00:33]} 20.
Qg4 {[%clk 00:09:59]} {[%emt 00:00:34]} Qg5 {[%clk 00:11:03]} {[%emt 00:00:22]}
21. Qxg5 {[%clk 00:09:43]} {[%emt 00:00:22]} hxg5 {[%clk 00:11:06]} {[%emt
00:00:02]} 22. Ne4 {[%clk 00:09:42]} {[%emt 00:00:07]} Rad8 {[%clk 00:10:33]}
{[%emt 00:00:37]} 23. Be3 {[%clk 00:08:24]} {[%emt 00:01:23]} bxc3 {[%clk
00:08:12]} {[%emt 00:02:26]} 24. bxc3 {[%clk 00:08:12]} {[%emt 00:00:17]} Na5
{[%clk 00:08:08]} {[%emt 00:00:08]} 25. Bxc5 {[%clk 00:05:03]} {[%emt
00:03:14]} Bxc5 {[%clk 00:07:40]} {[%emt 00:00:33]} 26. Nxc5 {[%clk 00:05:06]}
{[%emt 00:00:02]} Ne2+ {[%clk 00:07:18]} {[%emt 00:00:27]} 27. Kf1 {[%clk
00:05:03]} {[%emt 00:00:08]} Nxc3 {[%clk 00:07:22]} {[%emt 00:00:01]} 28. Nxb7
{[%clk 00:04:53]} {[%emt 00:00:15]} Nxb7 {[%clk 00:07:18]} {[%emt 00:00:09]} 29.
Re1 {[%clk 00:04:32]} {[%emt 00:00:26]} Nc5 {[%clk 00:07:03]} {[%emt 00:00:20]}
30. Ra3 {[%clk 00:04:24]} {[%emt 00:00:13]} Nd5 {[%clk 00:06:49]} {[%emt
00:00:18]} 31. Nf3 {[%clk 00:04:14]} {[%emt 00:00:16]} Nb4 {[%clk 00:06:21]}
{[%emt 00:00:32]} 32. Rc3 {[%clk 00:03:34]} {[%emt 00:00:46]} Nxc2 {[%clk
00:05:55]} {[%emt 00:00:32]} 33. Rxc2 {[%clk 00:03:36]} {[%emt 00:00:03]} Nxd3
{[%clk 00:05:57]} {[%emt 00:00:03]} 34. Rb1 {[%clk 00:03:26]} {[%emt 00:00:15]}
e4 {[%clk 00:05:06]} {[%emt 00:00:56]} 35. Nxg5 {[%clk 00:03:17]} {[%emt
00:00:14]} f6 {[%clk 00:04:42]} {[%emt 00:00:28]} 36. Rc7 {[%clk 00:02:14]}
{[%emt 00:01:08]} Nf4 {[%clk 00:03:32]} {[%emt 00:01:15]} 37. g3 {[%clk
00:02:10]} {[%emt 00:00:10]} Nd5 {[%clk 00:02:35]} {[%emt 00:01:03]} 38. Ra7
{[%clk 00:02:11]} {[%emt 00:00:04]} fxg5 {[%clk 00:02:09]} {[%emt 00:00:30]} 39.
Rbb7 {[%clk 00:02:14]} {[%emt 00:00:02]} Nf6 {[%clk 00:02:12]} {[%emt
00:00:02]} 40. Rxg7+ {[%clk 00:02:03]} {[%emt 00:00:16]} Kh8 {[%clk 00:02:16]}
41. Rxg5 {[%clk 00:02:02]} {[%emt 00:00:06]} Re6 {[%clk 00:01:57]} {[%emt
00:00:24]} 42. Rgg7 {[%clk 00:01:39]} {[%emt 00:00:28]} Red6 {[%clk 00:01:45]}
{[%emt 00:00:17]} 43. g4 {[%clk 00:01:35]} {[%emt 00:00:10]} R8d7 {[%clk
00:01:44]} {[%emt 00:00:06]} 44. Rgxd7 {[%clk 00:01:23]} {[%emt 00:00:17]} Nxd7
{[%clk 00:01:47]} {[%emt 00:00:01]} 45. Ke2 {[%clk 00:01:25]} {[%emt 00:00:03]}
Nc5 {[%clk 00:01:46]} {[%emt 00:00:06]} 46. Ke3 {[%clk 00:01:21]} {[%emt
00:00:09]} Re6 {[%clk 00:01:44]} {[%emt 00:00:07]} 47. Rc7 {[%clk 00:01:18]}
{[%emt 00:00:09]} Nxa4 {[%clk 00:01:44]} {[%emt 00:00:06]} 48. Rc4 {[%clk
00:01:20]} {[%emt 00:00:02]} Nb2 {[%clk 00:01:33]} {[%emt 00:00:16]} 49. Rb4
{[%clk 00:00:56]} {[%emt 00:00:30]} Nd1+ {[%clk 00:01:17]} {[%emt 00:00:20]} 50.
Ke2 {[%clk 00:00:46]} {[%emt 00:00:16]} Nc3+ {[%clk 00:01:10]} {[%emt
00:00:11]} 51. Kd2 {[%clk 00:00:45]} {[%emt 00:00:06]} Nd5 {[%clk 00:01:13]}
{[%emt 00:00:03]} 52. Rb7 {[%clk 00:00:40]} {[%emt 00:00:11]} Nf4 {[%clk
00:00:57]} {[%emt 00:00:20]} 53. h4 {[%clk 00:00:27]} {[%emt 00:00:18]} Ng6
{[%clk 00:00:54]} {[%emt 00:00:08]} 54. Rb3 {[%clk 00:00:12]} {[%emt 00:00:21]}
Nxh4 {[%clk 00:00:46]} {[%emt 00:00:13]} 55. Rh3 {[%clk 00:00:15]} {[%emt
00:00:02]} Rh6 {[%clk 00:00:49]} {[%emt 00:00:01]} 56. Kc3 {[%clk 00:00:13]}
{[%emt 00:00:08]} Kg7 {[%clk 00:00:45]} {[%emt 00:00:08]} 57. Kb4 {[%clk
00:00:12]} {[%emt 00:00:06]} Nf3 {[%clk 00:00:46]} {[%emt 00:00:04]} 58. Rg3
{[%clk 00:00:11]} {[%emt 00:00:07]} Rh2 {[%clk 00:00:47]} {[%emt 00:00:03]} 59.
Ka5 {[%clk 00:00:15]} {[%emt 00:00:02]} Rxf2 {[%clk 00:00:51]} {[%emt
00:00:01]} 60. Kxa6 {[%clk 00:00:18]} {[%emt 00:00:02]} e3 {[%clk 00:00:54]}
{[%emt 00:00:02]} 0-1

[Event "2025 Chess.com Botwinnik Rapid toernooi"]
[Site "Zoetermeer, Netherlands"]
[Date "????.??.??"]
[Round "1.4"]
[White "Van Vliet, Jeffrey"]
[Black "Meulmeester, Luuk"]
[Result "1-0"]
[TimeControl "15+5"]
[WhiteTitle "FM"]
[WhiteFideId "7890839"]
[BlackFideId "9068642"]
[WhiteElo "2387"]
[BlackElo "1970"]

1. e4 {[%clk 00:15:06]} {[%emt 00:00:03]} c6 {[%clk 00:15:09]} {[%emt
00:00:02]} 2. d4 {[%clk 00:15:09]} {[%emt 00:00:02]} d5 {[%clk 00:15:13]}
{[%emt 00:00:01]} 3. exd5 {[%clk 00:15:10]} {[%emt 00:00:04]} cxd5 {[%clk
00:15:16]} {[%emt 00:00:01]} 4. Bd3 {[%clk 00:15:06]} {[%emt 00:00:08]} Nc6
{[%clk 00:15:20]} {[%emt 00:00:03]} 5. c3 {[%clk 00:15:10]} Nf6 {[%clk
00:15:23]} {[%emt 00:00:02]} 6. h3 {[%clk 00:15:14]} e6 {[%clk 00:15:26]}
{[%emt 00:00:03]} 7. Bf4 {[%clk 00:15:13]} {[%emt 00:00:04]} Bd6 {[%clk
00:15:20]} {[%emt 00:00:11]} 8. Bxd6 {[%clk 00:15:15]} {[%emt 00:00:04]} Qxd6
{[%clk 00:15:24]} {[%emt 00:00:02]} 9. Nf3 {[%clk 00:15:18]} {[%emt 00:00:01]}
O-O {[%clk 00:15:22]} {[%emt 00:00:07]} 10. Qe2 {[%clk 00:15:18]} {[%emt
00:00:05]} a6 {[%clk 00:14:52]} {[%emt 00:00:36]} 11. a4 {[%clk 00:15:11]}
{[%emt 00:00:11]} Bd7 {[%clk 00:14:33]} {[%emt 00:00:25]} 12. O-O {[%clk
00:15:06]} {[%emt 00:00:09]} Rac8 {[%clk 00:14:30]} {[%emt 00:00:09]} 13. Nbd2
{[%clk 00:15:02]} {[%emt 00:00:07]} Ne7 {[%clk 00:14:17]} {[%emt 00:00:19]} 14.
Nb3 {[%clk 00:14:05]} {[%emt 00:01:02]} Ng6 {[%clk 00:13:14]} {[%emt 00:01:09]}
15. g3 {[%clk 00:13:04]} {[%emt 00:01:05]} Nh5 {[%clk 00:12:18]} {[%emt
00:01:00]} 16. Ne5 {[%clk 00:12:26]} {[%emt 00:00:43]} Nf6 {[%clk 00:12:20]}
{[%emt 00:00:03]} 17. f4 {[%clk 00:11:43]} {[%emt 00:00:47]} Qb6 {[%clk
00:11:43]} {[%emt 00:00:43]} 18. Nc5 {[%clk 00:10:59]} {[%emt 00:00:48]} Rxc5
{[%clk 00:11:04]} {[%emt 00:00:45]} 19. dxc5 {[%clk 00:11:01]} {[%emt
00:00:03]} Qxc5+ {[%clk 00:11:07]} 20. Qf2 {[%clk 00:10:41]} {[%emt 00:00:25]}
Qxf2+ {[%clk 00:09:16]} {[%emt 00:01:58]} 21. Kxf2 {[%clk 00:10:29]} {[%emt
00:00:17]} Nxe5 {[%clk 00:08:58]} {[%emt 00:00:22]} 22. fxe5 {[%clk 00:10:32]}
{[%emt 00:00:02]} Ne8 {[%clk 00:08:59]} {[%emt 00:00:05]} 23. Ke3 {[%clk
00:10:19]} {[%emt 00:00:18]} g6 {[%clk 00:08:52]} {[%emt 00:00:12]} 24. Kd4
{[%clk 00:10:07]} {[%emt 00:00:16]} Nc7 {[%clk 00:08:09]} {[%emt 00:00:49]} 25.
Rf4 {[%clk 00:09:07]} {[%emt 00:01:04]} Rc8 {[%clk 00:08:07]} {[%emt 00:00:08]}
26. h4 {[%clk 00:08:56]} {[%emt 00:00:16]} Na8 {[%clk 00:07:58]} {[%emt
00:00:14]} 27. h5 {[%clk 00:08:42]} {[%emt 00:00:18]} Nb6 {[%clk 00:08:03]}
{[%emt 00:00:02]} 28. b3 {[%clk 00:08:45]} {[%emt 00:00:02]} g5 {[%clk
00:07:41]} {[%emt 00:00:27]} 29. Rf6 {[%clk 00:08:41]} {[%emt 00:00:09]} Kg7
{[%clk 00:07:27]} {[%emt 00:00:20]} 30. h6+ {[%clk 00:08:34]} {[%emt 00:00:10]}
Kg8 {[%clk 00:07:20]} {[%emt 00:00:13]} 31. a5 {[%clk 00:08:37]} {[%emt
00:00:02]} 1-0

[Event "2025 Chess.com Botwinnik Rapid toernooi"]
[Site "Zoetermeer, Netherlands"]
[Date "????.??.??"]
[Round "1.5"]
[White "De Freytas, Paul"]
[Black "Tjiam, Dharma"]
[Result "0-1"]
[TimeControl "15+5"]
[BlackTitle "IM"]
[WhiteFideId "7393705"]
[BlackFideId "6383751"]
[WhiteElo "1966"]
[BlackElo "2364"]

1. d4 {[%clk 00:00:00]} {[%emt 16:08:58]} Nf6 {[%clk 00:15:07]} {[%emt
00:00:17]} 2. Nf3 {[%clk 00:15:12]} {[%emt 00:00:02]} e6 {[%clk 00:15:09]}
{[%emt 00:00:03]} 3. g3 {[%clk 00:15:14]} {[%emt 00:00:03]} c5 {[%clk
00:15:03]} {[%emt 00:00:11]} 4. Bg2 {[%clk 00:15:16]} {[%emt 00:00:03]} Nc6
{[%clk 00:15:01]} {[%emt 00:00:07]} 5. O-O {[%clk 00:15:13]} {[%emt 00:00:08]}
d5 {[%clk 00:15:02]} {[%emt 00:00:04]} 6. c4 {[%clk 00:15:10]} {[%emt
00:00:09]} Be7 {[%clk 00:15:01]} {[%emt 00:00:06]} 7. cxd5 {[%clk 00:15:06]}
{[%emt 00:00:08]} exd5 {[%clk 00:15:04]} {[%emt 00:00:01]} 8. Nc3 {[%clk
00:15:05]} {[%emt 00:00:06]} O-O {[%clk 00:15:06]} {[%emt 00:00:04]} 9. a3
{[%clk 00:14:56]} {[%emt 00:00:15]} cxd4 {[%clk 00:13:41]} {[%emt 00:01:29]} 10.
Nxd4 {[%clk 00:14:57]} {[%emt 00:00:04]} Bg4 {[%clk 00:13:44]} {[%emt
00:00:02]} 11. h3 {[%clk 00:13:41]} {[%emt 00:01:22]} Be6 {[%clk 00:13:41]}
{[%emt 00:00:08]} 12. b4 {[%clk 00:13:10]} {[%emt 00:00:37]} Ne5 {[%clk
00:13:11]} {[%emt 00:00:35]} 13. Nxe6 {[%clk 00:12:17]} {[%emt 00:00:57]} fxe6
{[%clk 00:13:13]} {[%emt 00:00:03]} 14. e4 {[%clk 00:11:07]} {[%emt 00:01:16]}
Rc8 {[%clk 00:10:17]} {[%emt 00:03:00]} 15. Qb3 {[%clk 00:09:16]} {[%emt
00:01:56]} Qc7 {[%clk 00:09:30]} {[%emt 00:00:51]} 16. exd5 {[%clk 00:07:06]}
{[%emt 00:02:16]} Qxc3 {[%clk 00:09:28]} {[%emt 00:00:08]} 17. Qxc3 {[%clk
00:07:05]} {[%emt 00:00:06]} Rxc3 {[%clk 00:09:31]} {[%emt 00:00:02]} 18. Bb2
{[%clk 00:07:09]} {[%emt 00:00:01]} Nf3+ {[%clk 00:09:34]} {[%emt 00:00:01]} 19.
Kh1 {[%clk 00:06:33]} {[%emt 00:00:41]} Rb3 {[%clk 00:09:19]} {[%emt 00:00:20]}
20. Bxf3 {[%clk 00:05:31]} {[%emt 00:01:07]} Rxf3 {[%clk 00:08:54]} {[%emt
00:00:29]} 21. dxe6 {[%clk 00:05:28]} {[%emt 00:00:08]} Ne4 {[%clk 00:08:50]}
{[%emt 00:00:09]} 22. Bd4 {[%clk 00:05:01]} {[%emt 00:00:33]} Nxg3+ {[%clk
00:08:52]} {[%emt 00:00:03]} 23. Kg2 {[%clk 00:04:53]} {[%emt 00:00:13]} Nxf1
{[%clk 00:08:54]} {[%emt 00:00:03]} 0-1

[Event "2025 Chess.com Botwinnik Rapid toernooi"]
[Site "Zoetermeer, Netherlands"]
[Date "????.??.??"]
[Round "1.6"]
[White "Smeets, Kobe"]
[Black "Landman, Renzo"]
[Result "1-0"]
[TimeControl "15+5"]
[WhiteTitle "FM"]
[WhiteFideId "8659420"]
[BlackFideId "9042572"]
[WhiteElo "2364"]
[BlackElo "1958"]

1. e4 {[%clk 00:15:07]} {[%emt 00:00:02]} e5 {[%clk 00:15:05]} {[%emt
00:00:05]} 2. Nf3 {[%clk 00:15:09]} {[%emt 00:00:04]} Nc6 {[%clk 00:15:03]}
{[%emt 00:00:06]} 3. Bb5 {[%clk 00:15:12]} {[%emt 00:00:03]} a6 {[%clk
00:15:00]} {[%emt 00:00:08]} 4. Ba4 {[%clk 00:15:16]} {[%emt 00:00:01]} Nf6
{[%clk 00:15:00]} {[%emt 00:00:05]} 5. O-O {[%clk 00:15:18]} {[%emt 00:00:02]}
Be7 {[%clk 00:14:50]} {[%emt 00:00:15]} 6. Bxc6 {[%clk 00:15:22]} {[%emt
00:00:02]} dxc6 {[%clk 00:14:39]} {[%emt 00:00:15]} 7. Qe1 {[%clk 00:15:26]}
{[%emt 00:00:02]} O-O {[%clk 00:12:04]} {[%emt 00:02:39]} 8. Nxe5 {[%clk
00:15:05]} {[%emt 00:00:26]} Bd6 {[%clk 00:07:06]} {[%emt 00:05:03]} 9. Nc4
{[%clk 00:11:28]} {[%emt 00:03:42]} Re8 {[%clk 00:05:00]} {[%emt 00:02:11]} 10.
d3 {[%clk 00:11:05]} {[%emt 00:00:28]} h6 {[%clk 00:02:57]} {[%emt 00:02:08]}
11. Nxd6 {[%clk 00:10:56]} {[%emt 00:00:14]} cxd6 {[%clk 00:02:59]} {[%emt
00:00:03]} 12. Nc3 {[%clk 00:10:48]} {[%emt 00:00:13]} Be6 {[%clk 00:02:46]}
{[%emt 00:00:17]} 13. f4 {[%clk 00:10:43]} {[%emt 00:00:11]} Qc7 {[%clk
00:02:04]} {[%emt 00:00:47]} 14. Qh4 {[%clk 00:10:39]} {[%emt 00:00:09]} Qe7
{[%clk 00:01:08]} {[%emt 00:01:01]} 15. Rf3 {[%clk 00:09:35]} {[%emt 00:01:08]}
Nh7 {[%clk 00:01:07]} {[%emt 00:00:06]} 16. Qg3 {[%clk 00:09:35]} {[%emt
00:00:05]} Kh8 {[%clk 00:00:55]} {[%emt 00:00:18]} 17. Be3 {[%clk 00:09:14]}
{[%emt 00:00:25]} b5 {[%clk 00:00:53]} {[%emt 00:00:08]} 18. Raf1 {[%clk
00:09:12]} {[%emt 00:00:07]} f6 {[%clk 00:00:40]} {[%emt 00:00:18]} 19. Ne2
{[%clk 00:08:57]} {[%emt 00:00:20]} c5 {[%clk 00:00:41]} {[%emt 00:00:04]} 20.
h4 {[%clk 00:08:44]} {[%emt 00:00:17]} Rac8 {[%clk 00:00:38]} {[%emt 00:00:09]}
21. f5 {[%clk 00:08:47]} {[%emt 00:00:02]} Bg8 {[%clk 00:00:33]} {[%emt
00:00:10]} 22. Nf4 {[%clk 00:08:51]} {[%emt 00:00:01]} Nf8 {[%clk 00:00:27]}
{[%emt 00:00:10]} 23. h5 {[%clk 00:08:02]} {[%emt 00:00:55]} Rc7 {[%clk
00:00:27]} {[%emt 00:00:05]} 24. Qh4 {[%clk 00:08:01]} {[%emt 00:00:06]} a5
{[%clk 00:00:19]} {[%emt 00:00:13]} 25. b3 {[%clk 00:06:56]} {[%emt 00:01:09]}
Qe5 {[%clk 00:00:18]} {[%emt 00:00:06]} 26. Ng6+ {[%clk 00:06:30]} {[%emt
00:00:31]} Nxg6 {[%clk 00:00:20]} {[%emt 00:00:04]} 27. hxg6 {[%clk 00:06:33]}
{[%emt 00:00:02]} 1-0